[Event "WYCC 2018 O14"]
[Site "Halkidiki"]
[Date "2018.10.21"]
[Round "3"]
[White "Huang, Renjie"]
[Black "Manafov, Vugar"]
[Result "1-0"]
[ECO "B04"]
[WhiteElo "2322"]
[BlackElo "2245"]
[Annotator "NA"]
[PlyCount "121"]
[EventDate "2018.10.20"]
[EventType "swiss"]
[EventCountry "GRE"]
[SourceTitle "playchess.com"]
[Source "ChessBase"]
[SourceQuality "1"]
[TimeControl "40/5400+30:1800+30"]

1. e4 {[%emt 0:00:00]} Nf6 {[%emt 0:00:00]} 2. e5 {[%emt 0:00:09]} Nd5 {[%emt 0:00:00]} 3. d4 {[%emt 0:00:10]} d6 {[%emt 0:00:00]} 4. Nf3 {[%emt 0:00:05]} Nb6 {[%emt 0:00:00]} 5. Be2 {[%emt 0:00:24]} g6 {[%emt 0:00:30]} 6. O-O {[%emt 0:02:19]} Bg7 {[%emt 0:00:45]} 7. exd6 {[%emt 0:00:16]} cxd6 {[%emt 0:00:08]} 8. Be3 {[%emt 0:03:03] B04: Aljechin-Verteidigung (Moderne Variante)} O-O {[%emt 0:01:04]} 9. Qc1 $146 {[%emt 0:00:28]} ({Vorgänger:} 9. c4 Nc6 10. Nc3 Bg4 11. b3 d5 12. c5 Nc8 13. h3 Bxf3 14. Bxf3 e6 15. b4 a6 16. Rb1 N8e7 17. Ne2 Nf5 18. Qd2 Nh4 19. Bg4 h5 20. Bg5 Bf6 21. Bxh4 Bxh4 22. Bf3 {0-1 (57) Sanchez,J (2461)-Dzhumaev,M (2529) Rochefort 2009}) 9... Nc6 {[%emt 0:04:04]} 10. Bh6 {[%emt 0:00:18]} Bg4 {[%emt 0:00:21]} 11. Bxg7 {[%emt 0:00:31]} Kxg7 {[%emt 0:00:06]} 12. Nbd2 {[%emt 0:01:15]} e5 {[%emt 0:02:04]} 13. Re1 {[%emt 0:05:08]} Bxf3 {[%emt 0:02:52]} 14. Bxf3 {[%emt 0:01:17]} Nxd4 {[%emt 0:00:24]} 15. Bxb7 {[%emt 0:00:07]} Rb8 {[%emt 0:00:12]} 16. Be4 {[%emt 0:00:34]} d5 {[%emt 0:01:22]} 17. c3 {[%emt 0:00:34]} Nc6 {[%emt 0:02:25]} 18. Bd3 {[%emt 0:00:29]} e4 {[%emt 0:00:36]} 19. Bf1 {[%emt 0:00:15]} f5 {[%emt 0:00:28]} 20. Nb3 {[%emt 0:02:01]} Qf6 {[%emt 0:03:37]} 21. Qf4 {[%emt 0:05:29]} g5 {[%emt 0:03:46]} 22. Qd2 {[%emt 0:00:05]} Rbd8 {[%emt 0:01:30]} 23. Nd4 {[%emt 0:03:12]} Ne5 {[%emt 0:03:34]} 24. Rad1 {[%emt 0:01:26]} Nbc4 {[%emt 0:10:40]} 25. Qc1 {[%emt 0:00:38]} Rc8 {[%emt 0:09:26]} 26. b3 {[%emt 0:02:26]} Nb6 $11 {[%emt 0:03:45]} 27. Qa3 {[%emt 0:02:21]} Rf7 {[%emt 0:04:31]} 28. Nb5 {[%emt 0:01:21]} Rcf8 {[%emt 0:09:37]} 29. c4 {[%emt 0:03:42]} a6 {[%emt 0:00:22]} 30. Nd6 {[%emt 0:00:53]} Rd7 {[%emt 0:01:15]} 31. c5 {[%emt 0:00:36]} d4 {[%emt 0:00:41]} 32. Qxa6 {[%emt 0:01:42]} Nd5 {[%emt 0:02:16]} 33. Bb5 {[%emt 0:06:10]} Re7 {[%emt 0:02:07]} 34. Nc8 {[%emt 0:07:09]} Rc7 {[%emt 0:13:36]} 35. Qxf6+ {[%emt 0:01:33]} Kxf6 {[%emt 0:03:11]} 36. Rxd4 {[%emt 0:00:39]} Rxc5 {[%emt 0:00:18]} 37. Nd6 {[%emt 0:00:35]} Ke6 {[%emt 0:00:43]} 38. b4 {[%emt 0:00:42]} Rc2 {[%emt 0:00:45]} 39. Nxe4 {[%emt 0:02:21]} fxe4 {[%emt 0:00:42]} 40. Rdxe4 {[%emt 0:00:00]} Rf5 {[%emt 0:00:00]} 41. g4 {[%emt 0:00:20]} Rfxf2 {[%emt 0:01:18]} 42. Rxe5+ {[%emt 0:00:02]} Kd6 {[%emt 0:00:10]} 43. Re6+ {[%emt 0:01:21]} Kc7 {[%emt 0:00:06]} 44. Rc6+ {[%emt 0:00:06]} Kb7 {[%emt 0:00:21]} 45. Rxc2 {[%emt 0:00:05]} Rxc2 {[%emt 0:00:04]} 46. Bd3 {[%emt 0:02:55]} Rxa2 {[%emt 0:00:05]} 47. Be4 {[%emt 0:07:01]} Rd2 {[%emt 0:00:06]} 48. Bxd5+ {[%emt 0:00:03]} Rxd5 {[%emt 0:00:04]} 49. Re7+ {[%emt 0:00:03]} Kc8 {[%emt 0:00:23]} 50. Rxh7 {[%emt 0:00:11]} Rd4 {[%emt 0:00:04]} 51. h3 {[%emt 0:00:06]} Rxb4 {[%emt 0:00:03]} 52. Rf7 {[%emt 0:00:08]} Kd8 {[%emt 0:00:24]} 53. Rf5 {[%emt 0:00:42]} Rb1+ {[%emt 0:00:06]} 54. Kg2 {[%emt 0:00:04]} Rb2+ {[%emt 0:00:02]} 55. Kg3 {[%emt 0:00:02]} Rb3+ {[%emt 0:00:04]} 56. Rf3 {[%emt 0:00:03]} Rb2 {[%emt 0:00:22]} 57. h4 {[%emt 0:00:11]} gxh4+ {[%emt 0:00:05]} 58. Kxh4 {[%emt 0:00:01]} Ke7 {[%emt 0:00:05]} 59. Kh5 {[%emt 0:00:07]} Rb8 {[%emt 0:01:17]} 60. g5 {[%emt 0:00:26]} Rg8 {[%emt 0:00:19]} 61. Kh6 {[%emt 0:00:06]} 1-0

[Event "WYCC 2018 O14"]
[Site "Halkidiki"]
[Date "2018.10.21"]
[Round "3"]
[White "Dardha, Daniel"]
[Black "Patrelakis, Evaggelos"]
[Result "1-0"]
[ECO "A05"]
[WhiteElo "2316"]
[BlackElo "2146"]
[Annotator "ChessBase"]
[PlyCount "149"]
[EventDate "2018.10.20"]
[EventType "swiss"]
[EventCountry "GRE"]
[SourceTitle "playchess.com"]
[Source "ChessBase"]
[SourceQuality "1"]
[TimeControl "40/5400+30:1800+30"]

1. Nf3 {[%emt 0:00:00]} Nf6 {[%emt 0:00:00]} 2. g3 {[%emt 0:00:00]} g6 {[%emt 0:00:00]} 3. b3 {[%emt 0:00:00]} Bg7 {[%emt 0:00:00]} 4. Bb2 {[%emt 0:00:00]} O-O {[%emt 0:00:05]} 5. Bg2 {[%emt 0:00:00]} d6 {[%emt 0:00:22]} 6. d4 {[%emt 0:00:00]} Nbd7 {[%emt 0:00:51]} 7. O-O {[%emt 0:00:00]} c6 {[%emt 0:01:11]} 8. c4 {[%emt 0:00:51]} Qc7 {[%emt 0:00:35]} 9. Nc3 {[%emt 0:00:30]} Re8 {[%emt 0:00:44]} 10. e4 {[%emt 0:06:42]} e5 {[%emt 0:02:24]} 11. d5 {[%emt 0:02:17]} c5 {[%emt 0:04:45]} 12. Ne1 {[%emt 0:01:35]} Nb6 {[%emt 0:02:59]} 13. Nd3 {[%emt 0:00:43]} h6 {[%emt 0:01:54]} 14. Qd2 {[%emt 0:07:08]} a6 {[%emt 0:04:22]} 15. f4 {[%emt 0:09:15]} exf4 {[%emt 0:02:36]} 16. gxf4 {[%emt 0:00:11]} Ng4 {[%emt 0:03:36]} 17. Rae1 {[%emt 0:03:44]} Bd4+ {[%emt 0:05:57]} 18. Kh1 {[%emt 0:00:14]} Qd8 {[%emt 0:02:29]} 19. Bf3 {[%emt 0:08:17]} Qh4 {[%emt 0:05:07]} 20. Nd1 {[%emt 0:01:09]} Bxb2 {[%emt 0:17:20]} 21. Qxb2 {[%emt 0:00:18]} Re7 {[%emt 0:02:34]} 22. Qg2 {[%emt 0:04:25]} h5 {[%emt 0:03:35]} 23. Qg3 {[%emt 0:14:08]} Qxg3 {[%emt 0:01:22]} 24. hxg3 {[%emt 0:00:02]} Bd7 {[%emt 0:01:33]} 25. Re2 {[%emt 0:02:57]} Rae8 {[%emt 0:00:43]} 26. Rfe1 {[%emt 0:00:53]} Nc8 {[%emt 0:01:05]} 27. Nc3 {[%emt 0:11:37]} f6 {[%emt 0:02:27]} 28. Kg2 {[%emt 0:00:54]} Kg7 {[%emt 0:00:33]} 29. a4 {[%emt 0:06:28]} a5 {[%emt 0:15:19]} 30. Bxg4 {[%emt 0:08:29]} Bxg4 {[%emt 0:00:41]} 31. Re3 {[%emt 0:00:05]} b6 {[%emt 0:01:18]} 32. Kf2 {[%emt 0:01:12]} Rf8 {[%emt 0:01:50]} 33. Rf1 {[%emt 0:01:09]} Rfe8 {[%emt 0:01:01]} 34. Rfe1 {[%emt 0:00:20]} Rf8 {[%emt 0:00:16]} 35. Rf1 {[%emt 0:00:07]} Rfe8 {[%emt 0:00:11]} 36. Ke1 {[%emt 0:00:15]} Bf5 {[%emt 0:03:04]} 37. Nf2 {[%emt 0:00:18]} Bd7 {[%emt 0:01:31]} 38. Kd2 {[%emt 0:01:29]} f5 {[%emt 0:00:45]} 39. Rfe1 {[%emt 0:01:32]} fxe4 {[%emt 0:00:21]} 40. Nfxe4 {[%emt 0:00:00]} Rf7 {[%emt 0:00:00]} 41. Nb5 {[%emt 0:05:22]} Bxb5 {[%emt 0:09:54]} 42. axb5 {[%emt 0:00:53]} Kf8 {[%emt 0:08:32]} 43. Ng5 {[%emt 0:05:32]} Rxe3 {[%emt 0:00:41]} 44. Rxe3 {[%emt 0:00:20]} Re7 {[%emt 0:00:21]} 45. Ne6+ {[%emt 0:01:13]} Kf7 {[%emt 0:00:23]} 46. Ke2 {[%emt 0:02:26]} Kf6 {[%emt 0:02:02]} 47. Kf3 {[%emt 0:01:12]} Kf5 {[%emt 0:00:52]} 48. Re2 {[%emt 0:05:35]} Rf7 {[%emt 0:03:03]} 49. Rg2 {[%emt 0:02:03]} Rh7 {[%emt 0:00:52]} 50. Rg1 {[%emt 0:00:13]} Rh8 {[%emt 0:01:13]} 51. Re1 {[%emt 0:00:32]} Rh7 {[%emt 0:00:16]} 52. Ng5 {[%emt 0:00:54]} Re7 {[%emt 0:00:14]} 53. Ne4 {[%emt 0:00:05]} Rd7 {[%emt 0:05:29]} 54. Rg1 {[%emt 0:01:03]} Rh7 {[%emt 0:01:11]} 55. Rg2 {[%emt 0:02:41]} Rh8 {[%emt 0:00:44]} 56. Re2 {[%emt 0:00:06]} Re8 {[%emt 0:00:07]} 57. Re1 {[%emt 0:00:09]} Rd8 {[%emt 0:00:55]} 58. Ng5 {[%emt 0:01:35]} Kf6 {[%emt 0:01:16]} 59. g4 {[%emt 0:03:36]} Rh8 {[%emt 0:04:59]} 60. gxh5 {[%emt 0:01:49]} gxh5 {[%emt 0:01:22]} 61. Re6+ {[%emt 0:00:42]} Kg7 {[%emt 0:00:09]} 62. f5 {[%emt 0:01:55]} h4 {[%emt 0:00:48]} 63. Kg4 {[%emt 0:01:04]} Kf8 {[%emt 0:02:10]} 64. f6 {[%emt 0:01:29]} h3 {[%emt 0:03:11]} 65. Nxh3 {[%emt 0:00:10]} Rh7 {[%emt 0:00:14]} 66. Ng5 {[%emt 0:00:48]} Rh1 {[%emt 0:00:33]} 67. Kf5 {[%emt 0:01:20]} Rf1+ {[%emt 0:02:14]} 68. Kg6 {[%emt 0:00:11]} Rg1 {[%emt 0:00:02]} 69. Re3 {[%emt 0:00:20]} Rg2 {[%emt 0:00:37]} 70. Rh3 {[%emt 0:00:27]} Ne7+ {[%emt 0:00:06]} 71. fxe7+ {[%emt 0:00:06]} Kxe7 {[%emt 0:00:02]} 72. Rh7+ {[%emt 0:00:24]} Kd8 {[%emt 0:00:22]} 73. Kf6 {[%emt 0:00:19]} Re2 {[%emt 0:00:05]} 74. Ne6+ {[%emt 0:00:08]} Kc8 {[%emt 0:00:01]} 75. Ke7 {[%emt 0:00:11]} 1-0

[Event "WYCC 2018 O14"]
[Site "Halkidiki"]
[Date "2018.10.21"]
[Round "3"]
[White "Gharibyan, Mamikon"]
[Black "Boyer, Mahel"]
[Result "0-1"]
[ECO "E10"]
[WhiteElo "2314"]
[BlackElo "2227"]
[Annotator "ChessBase"]
[PlyCount "110"]
[EventDate "2018.10.20"]
[EventType "swiss"]
[EventCountry "GRE"]
[SourceTitle "playchess.com"]
[Source "ChessBase"]
[SourceQuality "1"]
[TimeControl "40/5400+30:1800+30"]

1. d4 {[%emt 0:00:00]} Nf6 {[%emt 0:00:00]} 2. c4 {[%emt 0:00:16]} e6 {[%emt 0:00:00]} 3. Nf3 {[%emt 0:00:05]} c5 {[%emt 0:00:00]} 4. d5 {[%emt 0:00:16]} exd5 {[%emt 0:00:03]} 5. cxd5 {[%emt 0:00:05]} g6 {[%emt 0:00:03]} 6. Nc3 {[%emt 0:00:52]} Bg7 {[%emt 0:00:06]} 7. Bf4 {[%emt 0:01:20]} O-O {[%emt 0:00:05]} 8. e3 {[%emt 0:14:54]} d6 {[%emt 0:00:06]} 9. h3 {[%emt 0:02:10]} Na6 {[%emt 0:00:02]} 10. Be2 {[%emt 0:03:44]} Nc7 {[%emt 0:00:05]} 11. O-O {[%emt 0:00:27]} Rb8 {[%emt 0:00:26]} 12. a4 {[%emt 0:08:52]} Re8 {[%emt 0:00:07]} 13. Bh2 {[%emt 0:02:46]} Bf8 {[%emt 0:24:57]} 14. Nd2 {[%emt 0:14:22]} b6 {[%emt 0:09:36]} 15. e4 {[%emt 0:08:52]} a6 {[%emt 0:03:54]} 16. Rb1 {[%emt 0:03:07]} b5 {[%emt 0:01:08]} 17. axb5 {[%emt 0:01:31]} Nxb5 {[%emt 0:03:47]} 18. Bxb5 {[%emt 0:00:11]} axb5 {[%emt 0:00:02]} 19. b4 {[%emt 0:00:07]} c4 {[%emt 0:00:54]} 20. Re1 {[%emt 0:05:36]} Bg7 {[%emt 0:00:13]} 21. Nf3 {[%emt 0:03:06]} Ng4 {[%emt 0:04:21]} 22. hxg4 {[%emt 0:00:55]} Bxc3 {[%emt 0:00:02]} 23. Re3 {[%emt 0:01:24]} Bg7 {[%emt 0:00:06]} 24. Nd2 {[%emt 0:06:04]} Ra8 {[%emt 0:07:57]} 25. Qf3 {[%emt 0:13:17]} Ra6 {[%emt 0:04:04]} 26. Bf4 {[%emt 0:03:14]} Bd4 {[%emt 0:04:07]} 27. Re2 {[%emt 0:01:11]} Qh4 {[%emt 0:00:52]} 28. Bg3 {[%emt 0:03:28]} Qxg4 {[%emt 0:00:10]} 29. Rd1 {[%emt 0:01:28]} Bg7 {[%emt 0:05:48]} 30. Ree1 {[%emt 0:00:45]} Qxf3 {[%emt 0:00:31]} 31. Nxf3 {[%emt 0:00:28]} Bc3 {[%emt 0:02:27]} 32. Re2 {[%emt 0:00:30]} Bg4 {[%emt 0:00:42]} 33. Rc2 {[%emt 0:00:33]} Bg7 {[%emt 0:01:51]} 34. Re1 {[%emt 0:00:26]} Bxf3 {[%emt 0:18:37]} 35. gxf3 {[%emt 0:00:04]} Bf8 {[%emt 0:00:01]} 36. f4 {[%emt 0:00:38]} Ra4 {[%emt 0:01:03]} 37. Rb2 {[%emt 0:00:53]} f6 {[%emt 0:01:28]} 38. f3 {[%emt 0:00:28]} Rea8 {[%emt 0:00:26]} 39. Bf2 {[%emt 0:00:29]} Ra1 {[%emt 0:01:03]} 40. Kg2 {[%emt 0:00:00]} Rxe1 {[%emt 0:00:00]} 41. Bxe1 {[%emt 0:00:37]} Ra3 {[%emt 0:01:06]} 42. Rc2 {[%emt 0:00:43]} Kf7 {[%emt 0:02:50]} 43. Bc3 {[%emt 0:02:12]} Be7 {[%emt 0:00:34]} 44. Kf2 {[%emt 0:03:53]} h5 {[%emt 0:04:51]} 45. Kg3 {[%emt 0:01:09]} Bd8 {[%emt 0:00:29]} 46. Bd4 {[%emt 0:01:11]} Bc7 {[%emt 0:01:23]} 47. Rc1 {[%emt 0:05:39]} Ra4 {[%emt 0:06:08]} 48. Bc3 {[%emt 0:02:22]} Bb6 {[%emt 0:00:31]} 49. e5 {[%emt 0:02:52]} fxe5 {[%emt 0:01:56]} 50. fxe5 {[%emt 0:00:04]} dxe5 {[%emt 0:00:12]} 51. Bxe5 {[%emt 0:00:29]} Rxb4 {[%emt 0:02:47]} 52. Re1 {[%emt 0:02:44]} Bc5 {[%emt 0:05:19]} 53. d6 {[%emt 0:02:03]} Rb3 {[%emt 0:01:01]} 54. Bf4 {[%emt 0:01:09]} Rd3 {[%emt 0:00:43]} 55. Re7+ {[%emt 0:00:39]} Kf6 {[%emt 0:00:37]} 0-1

[Event "WYCC 2018 O14"]
[Site "Halkidiki"]
[Date "2018.10.21"]
[Round "3"]
[White "Suleymanli, Aydin"]
[Black "Dao, Minh Nhat"]
[Result "1-0"]
[ECO "A45"]
[WhiteElo "2313"]
[BlackElo "1956"]
[Annotator "NA"]
[PlyCount "85"]
[EventDate "2018.10.20"]
[EventType "swiss"]
[EventCountry "GRE"]
[SourceTitle "playchess.com"]
[Source "ChessBase"]
[SourceQuality "1"]
[TimeControl "40/5400+30:1800+30"]

1. d4 {[%emt 0:00:00]} Nf6 {[%emt 0:00:00]} 2. Bg5 {[%emt 0:00:00]} e6 {[%emt 0:00:10]} 3. e4 {[%emt 0:00:06]} d5 {[%emt 0:00:07]} 4. e5 {[%emt 0:09:30]} h6 {[%emt 0:00:06]} 5. Be3 {[%emt 0:00:03]} Nfd7 {[%emt 0:00:55]} 6. c3 {[%emt 0:00:44]} c5 {[%emt 0:01:08]} 7. f4 {[%emt 0:03:56]} Nc6 {[%emt 0:05:02]} 8. Nf3 {[%emt 0:01:12]} Qb6 {[%emt 0:10:21]} 9. Qd2 {[%emt 0:05:53]} cxd4 {[%emt 0:01:55]} 10. cxd4 {[%emt 0:00:19]} Bb4 {[%emt 0:00:30]} 11. Nc3 {[%emt 0:00:03]} Qa5 {[%emt 0:02:28]} 12. Rc1 {[%emt 0:03:26]} Nb6 {[%emt 0:01:28]} 13. a3 {[%emt 0:03:34]} Bxc3 {[%emt 0:01:31]} 14. Qxc3 {[%emt 0:10:10]} Qxc3+ {[%emt 0:03:27]} 15. Rxc3 {[%emt 0:00:10]} Na5 {[%emt 0:02:58]} 16. b3 {[%emt 0:00:04]} Bd7 $16 {[%emt 0:02:02]} 17. Bd2 {[%emt 0:01:24]} O-O {[%emt 0:12:54]} 18. Kf2 {[%emt 0:03:18]} a6 {[%emt 0:03:51]} 19. Bd3 {[%emt 0:01:25]} Nc6 {[%emt 0:03:43]} 20. Rc5 {[%emt 0:00:17]} Be8 {[%emt 0:02:54]} 21. g4 {[%emt 0:12:52]} Nd7 {[%emt 0:05:21]} 22. Rc2 {[%emt 0:00:15]} f6 {[%emt 0:01:24]} 23. Kg3 {[%emt 0:00:30]} g5 {[%emt 0:18:59]} 24. h4 {[%emt 0:06:12]} fxe5 {[%emt 0:04:27]} 25. dxe5 {[%emt 0:00:09]} gxf4+ {[%emt 0:00:58]} 26. Bxf4 {[%emt 0:00:11]} h5 {[%emt 0:00:04]} 27. Re1 {[%emt 0:07:13]} hxg4 {[%emt 0:04:35]} 28. Ng5 {[%emt 0:00:24]} Bh5 {[%emt 0:03:26]} 29. Nxe6 {[%emt 0:00:36]} Rf7 {[%emt 0:00:04]} 30. Ng5 {[%emt 0:10:48]} Rxf4 {[%emt 0:00:17]} 31. Kxf4 {[%emt 0:00:07]} Rf8+ {[%emt 0:00:05]} 32. Kg3 {[%emt 0:02:15]} Ndxe5 {[%emt 0:00:09]} 33. Bh7+ {[%emt 0:06:12]} Kh8 {[%emt 0:00:08]} 34. Rf2 {[%emt 0:00:06]} Rd8 {[%emt 0:04:32]} 35. Rf5 {[%emt 0:01:21]} Re8 {[%emt 0:03:11]} 36. Ne4 {[%emt 0:05:28]} Bf7 {[%emt 0:02:17]} 37. Nd6 {[%emt 0:00:25]} Kxh7 {[%emt 0:00:30]} 38. Nxe8 {[%emt 0:00:18]} Bxe8 {[%emt 0:00:15]} 39. Rfxe5 {[%emt 0:00:06]} Nxe5 {[%emt 0:00:04]} 40. Rxe5 {[%emt 0:00:00]} Bf7 {[%emt 0:00:00]} 41. Re7 {[%emt 0:00:40]} Kg6 {[%emt 0:00:54]} 42. Rxb7 {[%emt 0:00:07]} d4 {[%emt 0:00:14]} 43. h5+ {[%emt 0:00:52]} 1-0

[Event "WYCC 2018 O14"]
[Site "Halkidiki"]
[Date "2018.10.21"]
[Round "3"]
[White "Popov, Konstantin"]
[Black "Antonica, Dragos-Andrei"]
[Result "1-0"]
[ECO "C05"]
[WhiteElo "2304"]
[BlackElo "2061"]
[Annotator "NA"]
[PlyCount "77"]
[EventDate "2018.10.20"]
[EventType "swiss"]
[EventCountry "GRE"]
[SourceTitle "playchess.com"]
[Source "ChessBase"]
[SourceQuality "1"]
[TimeControl "40/5400+30:1800+30"]

1. e4 {[%emt 0:00:00]} e6 {[%emt 0:00:00]} 2. d4 {[%emt 0:00:00]} d5 {[%emt 0:00:00]} 3. Nd2 {[%emt 0:00:00]} Nf6 {[%emt 0:00:57]} 4. e5 {[%emt 0:00:08]} Nfd7 {[%emt 0:00:02]} 5. Bd3 {[%emt 0:00:17]} c5 {[%emt 0:00:18]} 6. c3 {[%emt 0:00:08]} Nc6 {[%emt 0:00:52]} 7. Ne2 {[%emt 0:00:19]} Qb6 {[%emt 0:18:23]} 8. Nf3 {[%emt 0:00:14]} Be7 {[%emt 0:00:19]} 9. O-O {[%emt 0:01:13]} f5 {[%emt 0:16:43]} ({Better is} 9... O-O $14) 10. Nf4 {[%emt 0:05:20]} Nf8 {[%emt 0:00:50]} 11. Nh5 {[%emt 0:00:48]} g6 {[%emt 0:12:51]} 12. Nf6+ {[%emt 0:00:51]} Bxf6 $16 {[%emt 0:09:52]} 13. exf6 {[%emt 0:00:10]} Qd8 {[%emt 0:11:15]} 14. Bg5 {[%emt 0:11:46]} Kf7 {[%emt 0:00:38]} 15. Qd2 {[%emt 0:01:56]} Nd7 {[%emt 0:04:17]} 16. Bb5 {[%emt 0:01:27]} Qb6 {[%emt 0:08:45]} 17. Bxc6 {[%emt 0:00:53]} bxc6 {[%emt 0:00:12]} 18. Rfe1 {[%emt 0:01:08]} Qd8 {[%emt 0:06:08]} 19. dxc5 {[%emt 0:01:01]} Re8 {[%emt 0:02:04]} 20. Qd4 {[%emt 0:06:47]} h6 {[%emt 0:03:10]} 21. Qh4 {[%emt 0:01:20]} Rh8 {[%emt 0:01:36]} 22. Bxh6 {[%emt 0:00:37]} Nxf6 {[%emt 0:00:54]} 23. Ne5+ {[%emt 0:00:24]} Kg8 {[%emt 0:00:35]} 24. Nxc6 {[%emt 0:00:43]} Qf8 {[%emt 0:00:06]} 25. Bxf8 {[%emt 0:01:51]} Rxh4 {[%emt 0:00:01]} 26. Be7 {[%emt 0:01:26]} Kf7 {[%emt 0:00:34]} 27. Ne5+ {[%emt 0:01:21]} Kg7 {[%emt 0:00:01]} 28. b4 {[%emt 0:03:24]} Rh8 {[%emt 0:01:00]} 29. Bxf6+ {[%emt 0:00:41]} Kxf6 {[%emt 0:00:04]} 30. f4 {[%emt 0:00:12]} Rg8 {[%emt 0:01:03]} 31. Nf3 {[%emt 0:00:11]} Ba6 {[%emt 0:00:46]} 32. Re3 {[%emt 0:00:11]} Bc4 {[%emt 0:00:51]} 33. Nd4 {[%emt 0:00:24]} Rge8 {[%emt 0:00:10]} 34. a4 {[%emt 0:00:40]} Re7 {[%emt 0:00:58]} 35. Rae1 {[%emt 0:00:21]} Rae8 {[%emt 0:00:20]} 36. b5 {[%emt 0:00:46]} g5 {[%emt 0:00:44]} 37. fxg5+ {[%emt 0:00:13]} Kxg5 {[%emt 0:00:05]} 38. Rxe6 {[%emt 0:00:16]} Rxe6 {[%emt 0:00:14]} 39. Rxe6 1-0

[Event "WYCC 2018 O14"]
[Site "Halkidiki"]
[Date "2018.10.21"]
[Round "3"]
[White "Tadic, Stefan"]
[Black "Vitenberg, Noam Aviv"]
[Result "1-0"]
[ECO "C15"]
[WhiteElo "2295"]
[BlackElo "2175"]
[Annotator "NA"]
[PlyCount "97"]
[EventDate "2018.10.20"]
[EventType "swiss"]
[EventCountry "GRE"]
[SourceTitle "playchess.com"]
[Source "ChessBase"]
[SourceQuality "1"]
[TimeControl "40/5400+30:1800+30"]

1. e4 {[%emt 0:00:00]} e6 {[%emt 0:00:00]} 2. d4 {[%emt 0:00:14]} d5 {[%emt 0:00:00]} 3. Nc3 {[%emt 0:00:58]} Bb4 {[%emt 0:00:00]} 4. Nge2 {[%emt 0:04:51]} Nf6 {[%emt 0:00:04]} 5. e5 {[%emt 0:19:17]} Nfd7 {[%emt 0:09:33]} 6. a3 {[%emt 0:04:42]} Be7 {[%emt 0:00:24]} 7. f4 {[%emt 0:07:00]} c5 {[%emt 0:02:11]} 8. Be3 $11 {[%emt 0:07:56] LiveBook: 19 Games} Nc6 {[%emt 0:04:51]} 9. dxc5 {[%emt 0:11:24]} Nxc5 {[%emt 0:14:48]} 10. Nd4 {[%emt 0:02:57]} Bd7 {[%emt 0:27:17]} 11. Nf3 {[%emt 0:09:02]} a5 {[%emt 0:10:42]} 12. Qd2 {[%emt 0:02:48]} a4 {[%emt 0:05:19]} 13. O-O-O {[%emt 0:05:43]} Qa5 {[%emt 0:07:07]} 14. Kb1 {[%emt 0:06:09]} Rb8 {[%emt 0:01:13]} 15. Nb5 {[%emt 0:01:20]} Qxd2 {[%emt 0:02:20]} 16. Nxd2 {[%emt 0:01:43]} Na5 {[%emt 0:02:42]} 17. f5 {[%emt 0:03:36]} O-O {[%emt 0:02:08]} 18. f6 {[%emt 0:00:39]} gxf6 {[%emt 0:03:25]} 19. exf6 {[%emt 0:00:05]} Bxf6 {[%emt 0:00:57]} 20. Bxc5 {[%emt 0:00:05]} Rfc8 {[%emt 0:00:33]} 21. Bb6 {[%emt 0:01:44]} Nc6 {[%emt 0:01:12]} 22. Nf3 {[%emt 0:01:44]} Ne7 {[%emt 0:01:31]} 23. Bd4 {[%emt 0:01:16]} Bxd4 {[%emt 0:01:13]} 24. Nbxd4 {[%emt 0:01:29]} f6 {[%emt 0:00:25]} 25. Bb5 {[%emt 0:01:02]} Bxb5 {[%emt 0:00:45]} 26. Nxb5 {[%emt 0:00:02]} Rc5 {[%emt 0:00:15]} 27. Nc3 {[%emt 0:01:10]} b5 {[%emt 0:00:12]} 28. Na2 {[%emt 0:00:55]} Kf7 {[%emt 0:00:51]} 29. Rhf1 {[%emt 0:00:36]} Nf5 {[%emt 0:00:25]} 30. Rd3 {[%emt 0:00:52]} Rg8 {[%emt 0:01:09]} 31. g3 {[%emt 0:00:01]} Rg4 {[%emt 0:00:20]} 32. Rc3 {[%emt 0:01:14]} Rcc4 {[%emt 0:01:15]} 33. Rxc4 {[%emt 0:00:27]} Rxc4 {[%emt 0:00:40]} 34. Nc3 {[%emt 0:00:52]} Rc5 {[%emt 0:00:26]} 35. Kc1 {[%emt 0:01:51]} d4 {[%emt 0:00:33]} 36. Ne4 {[%emt 0:00:27]} Rd5 {[%emt 0:00:39]} 37. Ne1 {[%emt 0:00:49]} Rd8 {[%emt 0:00:32]} 38. g4 {[%emt 0:00:16]} Ne3 {[%emt 0:00:19]} 39. Rxf6+ {[%emt 0:00:05]} Ke7 {[%emt 0:00:11]} 40. Rh6 {[%emt 0:00:00]} Rh8 {[%emt 0:00:00]} 41. h3 {[%emt 0:00:37]} Nc4 {[%emt 0:04:15]} 42. Nf3 {[%emt 0:01:00]} Rf8 {[%emt 0:01:04]} 43. Rxh7+ {[%emt 0:00:08]} Ke8 {[%emt 0:00:09]} 44. Ned2 {[%emt 0:03:08]} Nxd2 {[%emt 0:00:26]} 45. Nxd2 {[%emt 0:00:09]} Rf2 {[%emt 0:00:30]} 46. Ne4 {[%emt 0:02:58]} Re2 {[%emt 0:00:19]} 47. Nf6+ {[%emt 0:00:41]} Kf8 {[%emt 0:00:13]} 48. g5 {[%emt 0:00:05]} Rg2 {[%emt 0:00:13]} 49. Ng4 {[%emt 0:00:08]} 1-0

[Event "WYCC 2018 O14"]
[Site "Halkidiki"]
[Date "2018.10.21"]
[Round "3"]
[White "Ognean, Mihnea-Ionut"]
[Black "Turgut, Aydin"]
[Result "0-1"]
[ECO "E25"]
[WhiteElo "2291"]
[BlackElo "2156"]
[Annotator "NA"]
[PlyCount "78"]
[EventDate "2018.10.20"]
[EventType "swiss"]
[EventCountry "GRE"]
[SourceTitle "playchess.com"]
[Source "ChessBase"]
[SourceQuality "1"]
[TimeControl "40/5400+30:1800+30"]

1. d4 {[%emt 0:00:00]} Nf6 {[%emt 0:00:00]} 2. c4 {[%emt 0:00:00]} e6 {[%emt 0:00:00]} 3. Nc3 {[%emt 0:00:04]} Bb4 {[%emt 0:00:00]} 4. f3 {[%emt 0:00:09]} d5 {[%emt 0:00:53]} 5. a3 {[%emt 0:00:23]} Bxc3+ {[%emt 0:00:05]} 6. bxc3 {[%emt 0:00:03]} c5 {[%emt 0:00:05]} 7. cxd5 {[%emt 0:00:16]} Nxd5 {[%emt 0:00:05]} 8. dxc5 {[%emt 0:00:04]} f5 {[%emt 0:00:07]} 9. c4 {[%emt 0:11:12]} Qh4+ {[%emt 0:22:05]} 10. g3 {[%emt 0:00:59]} Qxc4 {[%emt 0:01:52]} 11. e4 {[%emt 0:35:46]} Qc3+ {[%emt 0:00:36]} 12. Bd2 {[%emt 0:00:05]} Qe5 {[%emt 0:00:09]} 13. Rc1 {[%emt 0:07:26]} fxe4 {[%emt 0:27:49]} 14. f4 {[%emt 0:09:07]} Qf6 {[%emt 0:05:36]} 15. Ne2 {[%emt 0:04:01]} O-O {[%emt 0:14:32]} 16. Bg2 {[%emt 0:00:21]} e3 {[%emt 0:15:43]} 17. Bc3 {[%emt 0:00:26]} Nxc3 {[%emt 0:00:09]} 18. Rxc3 {[%emt 0:00:43]} Rd8 {[%emt 0:02:02]} 19. Qc1 {[%emt 0:01:27]} Na6 {[%emt 0:01:01]} 20. O-O {[%emt 0:03:40]} Nc7 {[%emt 0:00:43]} 21. Rxe3 {[%emt 0:01:38]} Nd5 {[%emt 0:01:11]} 22. Re5 {[%emt 0:00:17]} Bd7 {[%emt 0:01:28]} 23. Nd4 {[%emt 0:01:22]} Rac8 {[%emt 0:01:06]} 24. Rfe1 {[%emt 0:01:12]} Qf8 {[%emt 0:02:17]} 25. f5 {[%emt 0:08:02]} Rxc5 {[%emt 0:00:09]} 26. Qb2 {[%emt 0:04:07]} Nc7 {[%emt 0:01:37]} 27. fxe6 {[%emt 0:01:37]} Rxe5 {[%emt 0:00:12]} 28. Rxe5 {[%emt 0:00:43]} Bxe6 {[%emt 0:00:09]} 29. h4 {[%emt 0:01:39]} Bc8 {[%emt 0:01:01]} 30. Qc3 {[%emt 0:04:27]} Qd6 {[%emt 0:00:58]} 31. Nf3 {[%emt 0:01:40]} Nd5 {[%emt 0:00:43]} 32. Qc4 {[%emt 0:01:15]} Be6 {[%emt 0:00:23]} 33. Kh2 {[%emt 0:00:08]} h6 {[%emt 0:00:28]} 34. Qe4 {[%emt 0:00:29]} Nf6 {[%emt 0:00:27]} 35. Qf4 {[%emt 0:01:50]} Ng4+ {[%emt 0:00:05]} 36. Kg1 {[%emt 0:00:02]} Nxe5 {[%emt 0:01:00]} 37. Nxe5 {[%emt 0:00:05]} Qd4+ {[%emt 0:00:53]} 38. Qxd4 {[%emt 0:00:05]} Rxd4 {[%emt 0:00:03]} 39. Bxb7 {[%emt 0:00:07]} Ra4 {[%emt 0:00:11]} 0-1